Cogmind - Beta 17.1 @@@ ROGUE MODE // 2026.09.24 @ 15:34:42 Player: MEOWRTGM Result: Destroyed by S-10 Pest with Light Assault Rifle Performance ------------- Evolutions (0) 0 Regions Visited (2) 400 Robots Destroyed (24) 120 Value Destroyed (588) 588 Prototype IDs (0) 0 Alien Tech Used (0) 0 Bonus (0) 0 TOTAL SCORE: 1108 Bonus ------- None Cogmind --------- Core Integrity 0/250 Matter 175/300 Energy 243/250 System Corruption 0% Temperature Cool (0) Movement Rolling (140) Ox4 Location -10/Mines Parts ------- > --- POWER (1) -------- Ion Engine > --- PROPULSION (2) --- Wheel Wheel > --- UTILITY (2) ------ Huge Storage Unit Seismic Detector > --- WEAPON (2) ------- Medium Laser Light Assault Rifle > --- INVENTORY (25) --- Light Nuclear Core Wheel Flight Unit Improved Heat Sink Small Storage Unit High-capacity Matter Pod (54) Grenade Launcher Peak State ------------ > --- POWER ------------ Ion Engine > --- PROPULSION ------- Wheel Wheel > --- UTILITY ---------- Improved Heat Sink Huge Storage Unit > --- WEAPON ----------- Medium Laser Light Assault Rifle > --- INVENTORY -------- Light Nuclear Core Wheel Flight Unit Small Storage Unit High-capacity Matter Pod Seismic Detector Grenade Launcher [Rating: 9] Favorites ----------- Power Light Ion Engine Engine Light Ion Engine Propulsion Light Treads Treads Light Treads Wheel Wheel Utility Seismic Detector Device Seismic Detector Storage Small Storage Unit Protection Light Armor Plating Weapon Medium Laser Energy Gun Medium Laser Ballistic Gun Light Assault Rifle Ballistic Cannon Light Cannon Launcher Grenade Launcher Build | -11 -10 -10 ------- Run | Yrd Mat Min Slots Evolved . | . . . Power . | . . . Propulsion . | . . . Utility . | . . . Weapon . | . . . Parts Attached 22 | 7 7 8 Power 2 | 1 1 . Engine 2 | 1 1 . Core . | . . . Reactor . | . . . Propulsion 4 | 2 . 2 Treads 2 | 2 . . Leg . | . . . Wheel 2 | . . 2 Hover . | . . . Flight . | . . . Utility 7 | 2 2 3 Device 3 | 1 1 1 Storage 2 | 1 1 . Processor . | . . . Hackware . | . . . Protection 2 | . . 2 Artifact . | . . . Weapon 9 | 2 4 3 Energy Gun 4 | 2 2 . Energy Cannon . | . . . Ballistic Gun 1 | . . 1 Ballistic Cannon 3 | . 1 2 Launcher 1 | . 1 . Special Weapon . | . . . Impact Weapon . | . . . Slashing Weapon . | . . . Piercing Weapon . | . . . Special Melee Weapon . | . . . Unidentified Prototypes . | . . . Parts Lost 8 | . . 8 Power . | . . . Propulsion 2 | . . 2 Utility 2 | . . 2 Weapon 4 | . . 4 Highest Loss Streak 8 | . . 8 To Critical Strikes . | . . . Average Backups 8 | 1 8 10 Power 1 | . 1 1 Propulsion 1 | . 1 2 Utility 2 | . 2 4 Weapon 2 | . 2 3 Tool/Special . | . . . Unused Backups 6 | . 2 4 Power 3 | . 2 1 Propulsion 2 | . . 2 Utility 1 | . . 1 Weapon . | . . . Tool/Special . | . . . Average Slot Usage (%) 98 | . 100 91 Engine 14 | . 14 14 Treads 25 | . 28 12 Wheel 1 | . . 9 Device 13 | . 14 10 Storage 14 | . 14 14 Energy Gun 17 | . 18 11 Ballistic Gun 1 | . . 7 Ballistic Cannon 9 | . 9 9 Peak Build Rating 9 | 7 8 9 Average Rating 7 | 5 7 7 On Entrance 5 | . 7 8 Avg Prop Armor Cover (%) . | . . . Naked Turns . | . . . Heaviest Build 91 | 13 91 91 Greatest Support 40 | 40 40 40 Greatest Overweight (x) 8 | . 2 8 Average Overweight (x) . | . . 3 Largest Inventory Capacity 25 | 8 25 25 Average Capacity 14 | 6 13 25 Most Carried 14 | 2 14 14 Average Carried 8 | 1 8 10 Final Capacity 25 | 8 25 25 Final Carried 14 | 2 14 7 Class Distribution -------------------- 94% | Mutant 5% | Scavenger-Mutant Dominant Class ---------------- Mutant | -10/Materials Mutant | -10/Mines Resources | -11 -10 -10 ----------- Run | Yrd Mat Min Matter Collected 636 | 226 290 120 Remotely . | . . . Salvage Created 537 | 23 485 29 Parts 40 | 3 37 . Haulers Intercepted 1 | . 1 . Recyclers Shooed 1 | . 1 . Parts Field Recycled . | . . . Retrieved Matter . | . . . Parts Self-Destructed . | . . . Prevented . | . . . Parts Restored . | . . . Kills | -11 -10 -10 ------- Run | Yrd Mat Min Combat Hostiles Destroyed 18 | . 15 3 Guns 6 | . 4 2 Cannons 5 | . 4 1 AOE 7 | . 7 . Classes Destroyed 8 | 1 5 2 Worker 3 | . 3 . Tunneler 2 | 1 1 . Hauler 1 | . 1 . Watcher 2 | . 2 . Swarmer 3 | . 3 . Grunt 12 | . 12 . Demolisher 1 | . . 1 Assembled 2 | . . 2 Best Kill Streak 5 | 1 5 1 Combat Bots Only 5 | . 5 1 Max Kills in Single Turn 2 | 1 2 1 Gunslinging . | . . . Exploded 2 | . 2 . Melee . | . . . Uniques/NPCs Destroyed . | . . . Combat | -11 -10 -10 -------- Run | Yrd Mat Min Hostile Shots Fired 95 | . 61 34 Missed 30 | . 27 3 Hits 65 | . 34 31 Melee 2 | . . 2 Projectile 63 | . 34 29 AOE 21 | . . 21 Critical Strikes 1 | . 1 . Damage Taken 1487 | . 433 1054 Core 253 | . 81 172 Absorbed by Shields . | . . . Core Remaining (%) 100 | 100 . . Volleys Fired 74 | 1 53 20 Largest 2 | 2 2 2 Hottest 80 | 80 80 80 Shots Fired 140 | 2 98 40 Gun 80 | 2 53 25 Cannon 52 | . 37 15 Launcher 8 | . 8 . Special . | . . . Kinetic 69 | . 37 32 Thermal 45 | . 37 8 Explosive 8 | . 8 . Electromagnetic 18 | 2 16 . Robot Hit Streak 8 | 1 8 6 Robot Miss Streak 5 | 1 5 4 Penetration Max . | . . . Secondary Targets . | . . . Shots Hit Robots 77 | 1 55 21 Core Hits 43 | 1 37 5 Critical Kills . | . . . Critical Parts Destroyed . | . . . Critical Strikes 9 | . 6 3 Burn 6 | . 4 2 Destroy 1 | . . 1 Blast 2 | . 2 . Melee Attacks . | . . . Impact . | . . . Slashing . | . . . Piercing . | . . . Sneak Attacks . | . . . Combat Hostiles . | . . . Follow-up Attacks . | . . . Damage Inflicted 1700 | 15 1404 281 Guns 565 | 15 398 152 Cannons 510 | . 388 122 Explosions 612 | . 612 . Melee . | . . . Ramming 13 | . 6 7 Kinetic 560 | . 388 172 Thermal 451 | . 349 102 Explosive 547 | . 547 . Electromagnetic 129 | 15 114 . Impact . | . . . Slashing . | . . . Piercing . | . . . Highest Corruption . | . . . Average Corruption . | . . . Corruption Purged . | . . . Corruption Blocked . | . . . Overload Shots . | . . . Overflow Damage 53 | . 53 . Projectiles . | . . . Explosions 53 | . 53 . Melee . | . . . Knockbacks 6 | . 2 4 Impact . | . . . Kinetic 6 | . 2 4 Secondary . | . . . Self-Inflicted Damage 55 | . 55 . Shots 2 | . 2 . Rammed 4 | . 3 1 Targets Rammed 4 | . 3 1 Kicked . | . . . Crushed . | . . . Highest Temperature 303 | 18 303 37 Average Temperature 65 | 12 81 9 Received Heat Transfer 216 | . 216 . Siege Activations . | . . . Martial Activations . | . . . Shielding Activations . | . . . Robots Disrupted . | . . . Combat Hostiles . | . . . Robots Corrupted . | . . . Combat Hostiles . | . . . Parts Fried 1 | . 1 . Impact Corruptions . | . . . Robots Melted . | . . . Combat Hostiles . | . . . Parts Melted 3 | . 3 . Heat Transferred 1691 | . 1247 444 Parts Sabotaged . | . . . Parts Stolen . | . . . Parts Stripped . | . . . Power Chain Reactions 1 | . 1 . Alert | -11 -10 -10 ------- Run | Yrd Mat Min Maximum Alert Level 1 | . 1 . Low Security (%) 82 | 100 77 100 Level 1 17 | . 22 . Level 2 . | . . . Level 3 . | . . . Level 4 . | . . . Level 5 . | . . . High Security . | . . . Max Security . | . . . Peak Influence 247 | 5 247 67 Initial 67 | . . 67 Average 73 | . 89 22 Influence Increases 507 | 5 482 20 Destroy 0b10 Robot/C 320 | . 300 20 Destroy 0b10 Robot/NC 40 | 5 35 . Destroy Leader 76 | . 76 . Disable Machine 30 | . 30 . Destroy Structure 41 | . 41 . Influence Decreases 507 | 5 307 195 Entered New Map 108 | . . 108 Time Decay 362 | 5 307 50 Lost Part 37 | . . 37 Squads Dispatched 5 | . 5 . Investigation 2 | . 2 . Extermination . | . . . Reinforcement 3 | . 3 . Assault . | . . . Garrison . | . . . Intercept . | . . . Searches Triggered . | . . . Construction Impeded . | . . . Haulers Reinforced . | . . . Active Scanning Responses . | . . . Cargo Convoy Interrupts . | . . . Stealth | -11 -10 -10 --------- Run | Yrd Mat Min Distress Signals 1 | . 1 . Communications Jammed . | . . . Distress Signals . | . . . Times Spotted 26 | . 21 5 Peak Tracking Total 3 | . 3 2 Tactical Retreats . | . . . Traps | -11 -10 -10 ------- Run | Yrd Mat Min Traps Triggered . | . . . Indirectly . | . . . Trap Hack Attempts . | . . . Triggered . | . . . Disarmed . | . . . Reprogrammed . | . . . Reused . | . . . Traps Extracted . | . . . Installed . | . . . Triggered . | . . . Machines | -11 -10 -10 ---------- Run | Yrd Mat Min Machines Disabled 2 | . 2 . Max in Single Turn 2 | . 2 . Machines Repaired . | . . . Machines Dismantled . | . . . Machines Sabotaged . | . . . Overloaded Fab Kills . | . . . Hacking | -11 -10 -10 --------- Run | Yrd Mat Min Machines Accessed 4 | . 4 . Terminals 2 | . 2 . Fabricators . | . . . Repair Stations 1 | . 1 . Recycling Units 1 | . 1 . Scanalyzers . | . . . Garrison Access . | . . . Total Hacks 9 | . 9 . Successful 5 | . 5 . Failed 4 | . 4 . Catastrophic . | . . . Database Lockouts . | . . . Manual 5 | . 5 . Terminals 4 | . 4 . Fabricators . | . . . Repair Stations 2 | . 2 . Recycling Units 3 | . 3 . Scanalyzers . | . . . Garrison Access . | . . . Terminal Hacks 1 | . 1 . Branch Access Points 1 | . 1 . Fabricator Hacks . | . . . Repair Station Hacks . | . . . Recycling Unit Hacks 2 | . 2 . Report Inventory 1 | . 1 . Retrieve Components 1 | . 1 . Scanalyzer . | . . . Garrison Access Hacks . | . . . Unauthorized Hacks 2 | . 2 . Terminals 1 | . 1 . Botnet 1 | . 1 . Fabricators . | . . . Repair Stations 1 | . 1 . Mechanics 1 | . 1 . Recycling Units . | . . . Scanalyzers . | . . . Garrison Access . | . . . Data Cores Recovered . | . . . Used . | . . . Hacking Detections 3 | . 3 . Full Trace Events . | . . . Feedback Events . | . . . Feedback Blocked . | . . . Robot Schematics Acquired . | . . . Robots Built . | . . . Authchips . | . . . Time . | . . . Total Robot Build Rating . | . . . Part Schematics Acquired . | . . . Parts Built . | . . . Authchips . | . . . Time . | . . . Total Part Build Rating . | . . . Part Studies Acquired . | . . . Parts Repaired . | . . . Time . | . . . Parts Recycled . | . . . Recycled Matter . | . . . Retrieved Matter . | . . . Retrieved Components 4 | . 4 . Parts Scanalyzed . | . . . Part Schematics Acquired . | . . . Parts Damaged . | . . . Bothacking | -11 -10 -10 ------------ Run | Yrd Mat Min Used RIF Installer . | . . . Robots Hacked . | . . . Non-combat . | . . . Combat . | . . . Robot Hacks Applied . | . . . Relay Couplers Released . | . . . Fabnet Peak Effective % . | . . . Robots Rewired . | . . . Allies Hacked . | . . . Hacks Repelled . | . . . Allies | -11 -10 -10 -------- Run | Yrd Mat Min Total Allies . | . . . Largest Group . | . . . Highest-Rated Group . | . . . Highest-Rated Ally . | . . . Total Orders . | . . . Ally Attacks . | . . . Total Damage . | . . . Kills . | . . . Allies Corrupted . | . . . Allies Melted . | . . . Intel | -11 -10 -10 ------- Run | Yrd Mat Min Active Infowar (turns) 1171 | 34 1047 90 Seismic 1171 | 34 1047 90 Robot Analysis Total . | . . . Derelict Logs Recovered . | . . . Drone Launches . | . . . Drone Recoveries . | . . . Exploration | -11 -10 -10 ------------- Run | Yrd Mat Min Turns Passed 1368 | 87 1070 211 Spaces Moved 551 | 48 438 65 Core 4 | 4 . . Treads 508 | 44 438 26 Legs . | . . . Wheels 39 | . . 39 Hover . | . . . Flight . | . . . Fastest Speed 50 | 50 160 140 Average Speed 192 | 150 193 215 Slowest Speed 320 | 160 320 320 Overloaded Moves . | . . . Propulsion Burnouts . | . . . Robots Hopped . | . . . Potential Cave-ins . | . . . Cave-ins Triggered . | . . . Exploration Rate (%) 28 | 4 58 23 Regions Visited 2 Branch Regions 1 Pre-discovered Areas . | . . . Known Exits Taken 1 | . 1 . Unknown Exits Taken 1 | 1 . . Scrap Searched . | . . . Spaces Dug . | . . . Terrain Destroyed 42 | . 42 . Melee . | . . . Projectile . | . . . AOE 42 | . 42 . Terrain Rammed . | . . . Walls Destroyed . | . . . Machines Disabled . | . . . Actions | -11 -10 -10 --------- Run | Yrd Mat Min Total 717 | 57 564 96 Wait 38 | . 38 . Move 549 | 47 437 65 Hop . | . . . Pick Up 19 | 2 17 . Fast Attach 8 | 7 . 1 Attach 7 | . . 7 Detach . | . . . Swap 11 | . 9 2 Drop 7 | . 7 . Fire 74 | 1 53 20 Melee . | . . . Ram . | . . . Kick . | . . . Crush 4 | . 3 1 Escape Stasis . | . . . Rewire . | . . . Trap . | . . . Miscellaneous . | . . . Route ------- -11/Scrapyard -10/Materials (discovered 4 exits: [*Mat x2] / *Min / [*Sub]) -10/Mines History --------- Turn | Location | Event 5 | -11/Scrapyard | Discovered new exit (range 15) 88 | -11/Scrapyard | Entered Materials 237 | -10/Materials | Discovered new exit (range 16) 317 | -10/Materials | Build established: Mutant 438 | -10/Materials | Discovered new exit (range 7) 567 | -10/Materials | Identified exit to Mines 582 | -10/Materials | Discovered new exit (range 16) 1158 | -10/Materials | Entered Mines 1191 | -10/Mines | Assembled infested the area 1196 | -10/Mines | Assisted by a Guerilla fighting off Assembled 1250 | -10/Mines | Core integrity fell below 50% 1288 | -10/Mines | Core integrity fell below 20% 1324 | -10/Mines | Lost 8 parts (2n2u4w) 1369 | -10/Mines | Destroyed by S-10 Pest with Light Assault Rifle Last Messages --------------- 01294_ U-05 Engineer builds a Wall. 01295_ The unstable cave ceiling collapses. 01296_ as-46947 destroyed. 01297_ The unstable cave ceiling collapses. 01299_ U-05 Engineer lays Concrete. 01300_ U-05 Engineer builds a Wall. 01307_ Acquired Wheel. 01308_ U-05 Engineer lays Concrete. 01308_ Acquired 15 matter. 01310_ U-05 Engineer builds a Wall. 01314_ U-05 Engineer lays Concrete. 01315_ as-73018 sneak attacks. 01315_ U-05 Engineer system corrupted by crushing effect. 01315_ U-05 Engineer knocked back. 01315_ Acquired 3 matter. 01316_ U-05 Engineer system terminally corrupted. 01317_ K-01 Serf collects debris. 01325_ as-73018 suffers critical hit (Burn). 01326_ K-01 Serf collects debris. 01333_ as-73018 destroyed. Map ----- +----------------------------------------------------+ | ???????????????????????????????? | | ???????????????????????????????? | | ???????????????????????????????? | | ???????????????????????????????? | | ???????????????????????????????? | | ???????????????????????????????? | | ???????????????????????????????? | | ???????????????????????????????? | | ???????????????????????????????? | | ???????????????????????????????? | | ???????????????????????????????? | | ???????????????????????????????? | | ???????????????????????????????? | | ???????????????????????????????? | | ???????????????????????????????? | | ???????????????????????????????? | | ???????????????????????????????? | | ?????????????#?????????????????? | | ???????????? ???????????????? | | ???????????? #???###???????? | | ???????????? #?## #??????? | | ??????????? ## ??????? | | ??????????? s ??????? | | ?????????????? ??????? | | ??????????????????# ##????? | | ?????????????????????# @##???? | | ?????????????????????## ##??? | | ?????????????????????## #??? | | ????????????????????## #??? | | ????????????????????# #??? | | ????????# ##???????# ##?? | | ????????# #??????## #?? | | ????????? ##?????# #?? | | ?????????# ###??# ##?? | | ????????## ##?## ##??? | | ????????# #??# #???? | | ????????# #??# #???? | | ####????# #??# ##???? | | # ####??# #??# #????? | | ### ##??? #?## #????? | | # #?????# ### #????? | | # ##?????# ### ##????? | | % ##????# ##?????? | | # ##??## #??????? | | ## ####% ##### ##??????? | | #### % ##???###???????? | | ###### ##??????????????? | | ####????# #???????????????? | | #???????# #???????????????? | | ??????? ##???????????????? | +----------------------------------------------------+ Best States ------------- Heat Dissipation 39 Energy Generation 10 Energy Capacity 250 Matter Stores 300 Matter Capacity 300 Sight Range 16 Terrain Scan Density 10 Armor Coverage 150 Evasion (%) 40 Recoil Reduction 2 Item Schematics ----------------- None Robot Schematics ------------------ None Fabricated ------------ Nothing Repaired ---------- Nothing Studied --------- None Alien Tech Used ----------------- None Achievements -------------- None Challenges ------------ None Game ------ Seed CoilReflectiveCartridge Manual? 0 Play Time 00:13:01 Cumulative 100.3 hours Start 2026.09.24 @ 15:23:34 End 2026.09.24 @ 15:34:42 Sessions 1 Manual Loads 0 Difficulty Rogue Special Mode None Game No. 87 Rogue 47 Adventurer 40 Explorer 0 Win Type - Total 5 Types 3/1/0/1/0/0/0/0/0/0 Lore% 47 Gallery% 48 Achievement% 42 Wizard Run 0 Options --------- Layout 0 ASCII 0 Keyboard 0 Movement Mouse Keybinds 0 Fullscreen 0 Font 16/SmallcapsGlow Map View 88x55 Zoom Use 0% Tactical HUD 1 Map Filters NONE Filters NONE Steam 1 RUN: def2e6da-8cb1-4268-aeca-b095d933289d